bitfinex/quotes_SOLUSD_20251202
["timestamp","ask_amount","ask_price","bid_price","bid_amount"]
[1764696078548,10.84621386,140.34,140.31,7.87081733]
[1764696078929,10.84621386,140.34,140.29,7.94]
[1764696079130,10.84621386,140.34,140.3,7.87081733]
[1764696079330,10.84621386,140.34,140.31,7.21081733]
[1764696080233,3.72053178,140.34,140.32,7.21081733]
[1764696080452,3.72053178,140.34,140.32,7.87081733]
[1764696080647,3.72053178,140.34,140.31,7.21081733]
[1764696081146,10.84620095,140.34,140.31,7.87081733]
[1764696081347,3.72053178,140.34,140.31,7.87081733]
[1764696081655,3.72053178,140.34,140.29,7.94]
[1764696081656,3.72053178,140.34,140.32,7.87081733]
[1764696081837,3.72053178,140.34,140.33,7.21081733]
[1764696082037,3.72053178,140.34,140.33,7.87081733]
[1764696082729,17.02891775,140.35,140.33,24.62076225]
[1764696082948,16.40891775,140.35,140.34,7.87081733]
[1764696083333,16.40891775,140.35,140.34,0.66]
[1764696083537,16.40891775,140.35,140.34,15.81081733]
[1764696084933,16.40891775,140.35,140.34,22.93636956]
[1764696085434,16.40891775,140.35,140.34,31.74631448]
[1764696087265,8.98536616,140.39,140.38,15.15081733]
[1764696087566,8.98536616,140.39,140.38,15.81081733]
[1764696087945,8.98536616,140.39,140.38,7.21081733]
[1764696090361,8.98536616,140.39,140.38,21.71505896]
[1764696090857,8.98536616,140.39,140.38,36.77858082]
[1764696092044,3.71883615,140.41,140.39,8.80994492]
[1764696092245,19.68423733,140.47,140.4,28.17756608]
[1764696092450,19.68423733,140.47,140.44,12.24511404]
[1764696092661,3.71722019,140.46,140.44,12.24511404]
[1764696092851,3.71722019,140.46,140.44,20.18511404]
[1764696093360,3.71722019,140.46,140.45,12.24511404]
[1764696093560,3.71722019,140.46,140.45,12.92511404]
[1764696093960,3.71722019,140.46,140.45,21.73505896]
[1764696094265,3.71722019,140.46,140.45,28.85503048]
[1764696094465,3.71722019,140.46,140.45,21.73505896]
[1764696095940,3.71722019,140.46,140.45,12.24511404]
[1764696096566,3.71722019,140.46,140.45,7.94]
[1764696096959,3.71722019,140.46,140.43,12.24511404]
[1764696097161,4.43722019,140.46,140.44,7.94]
[1764696097460,0.72,140.45,140.38,9.48994492]
[1764696097765,12.96511404,140.45,140.4,12.24511404]
[1764696097967,0.72,140.45,140.41,20.18511404]
[1764696098145,0.72,140.44,140.41,7.94]
[1764696098340,0.72,140.45,140.42,12.24511404]
[1764696098739,11.55672833,140.46,140.42,12.24511404]
[1764696098938,0.72,140.45,140.42,12.24511404]
[1764696099350,0.72,140.45,140.41,20.18511404]
[1764696099551,12.96511404,140.45,140.4,12.24511404]
[1764696099860,0.72,140.45,140.41,20.16511404]
[1764696100052,0.72,140.44,140.38,9.48994492]
[1764696100259,7.12098554,140.43,140.39,20.16511404]
[1764696100467,79.87984758,140.35,140.32,25.18776284]
[1764696100646,79.87984758,140.35,140.34,12.24511404]
[1764696101263,79.87984758,140.35,140.34,24.49022808]
[1764696101540,79.87984758,140.35,140.34,20.94355314]
[1764696101744,79.87984758,140.35,140.33,7.12606]
[1764696101963,79.87984758,140.35,140.34,20.16511404]
[1764696102358,79.87984758,140.35,140.34,27.29066627]
[1764696102565,79.87984758,140.35,140.34,36.15061119]
[1764696102959,79.87984758,140.35,140.34,23.90549715]
[1764696103158,79.87984758,140.35,140.34,8.80994492]
[1764696103365,79.87984758,140.35,140.34,28.23061119]
[1764696103667,79.87984758,140.35,140.34,36.17061119]
[1764696104447,44.22107877,140.35,140.34,36.17061119]
[1764696106477,44.22107877,140.35,140.34,36.12061119]
[1764696106672,44.22107877,140.35,140.34,28.18061119]
[1764696106978,44.22107877,140.35,140.34,12.24511404]
[1764696107155,44.22107877,140.35,140.33,7.94]
[1764696107156,44.93107877,140.35,140.33,12.24511404]
[1764696107356,0.71,140.34,140.31,28.18203162]
[1764696107671,0.71,140.34,140.3,7.94]
[1764696107876,0.71,140.34,140.31,12.24511404]
[1764696108257,0.71,140.34,140.3,7.94]
[1764696108466,0.71,140.34,140.31,12.24511404]
[1764696108662,7.83573782,140.34,140.29,8.80994492]
[1764696108868,7.83573782,140.34,140.3,12.24511404]
[1764696109088,0.71,140.33,140.3,12.24511404]
[1764696109265,0.71,140.33,140.27,7.1286909]
[1764696109451,0.71,140.33,140.3,12.24511404]
[1764696109655,12.95511404,140.33,140.28,12.24511404]
[1764696110183,0.71,140.32,140.28,12.24511404]
[1764696110359,7.83662912,140.32,140.28,12.24511404]
[1764696110558,28.02174316,140.32,140.27,12.24511404]
[1764696110763,12.95511404,140.31,140.26,12.24511404]
[1764696111261,0.71,140.3,140.26,12.24511404]
[1764696111463,0.71,140.3,140.27,12.24511404]
[1764696111876,0.71,140.32,140.29,12.24511404]
[1764696112179,44.93107877,140.35,140.31,12.24511404]
[1764696112481,44.93107877,140.35,140.34,12.24511404]
[1764696112782,44.22107877,140.35,140.34,12.24511404]
[1764696112952,44.93107877,140.35,140.34,12.24511404]
[1764696113863,44.93107877,140.35,140.33,12.24511404]
[1764696114063,0.71,140.34,140.33,12.24511404]
[1764696114785,0.71,140.34,140.26,17.82377212]
[1764696114995,0.71,140.34,140.33,12.24511404]
[1764696115166,44.22107877,140.35,140.33,12.24511404]
[1764696115367,44.93107877,140.35,140.34,12.24511404]
[1764696116585,44.93107877,140.35,140.33,12.24511404]
[1764696116770,0.71,140.34,140.33,12.24511404]
[1764696117786,0.71,140.34,140.25,12.24511404]
[1764696117787,7.83565525,140.34,140.25,12.24511404]
[1764696117972,7.83565525,140.34,140.33,12.24511404]
[1764696117973,0.71,140.34,140.33,12.24511404]
[1764696118171,44.22107877,140.35,140.33,12.24511404]
[1764696118482,44.93107877,140.35,140.34,12.24511404]
[1764696118686,44.22107877,140.35,140.34,12.24511404]
[1764696118868,44.22107877,140.35,140.31,8.80994492]
[1764696119074,44.22107877,140.35,140.33,12.24511404]
[1764696119284,0.71,140.34,140.29,0.05]
[1764696119464,0.71,140.34,140.33,12.24511404]
[1764696119988,7.83555223,140.34,140.32,12.24511404]
[1764696120183,7.83555223,140.34,140.31,12.24511404]
[1764696120390,0.71,140.33,140.3,12.24511404]
[1764696120767,0.71,140.33,140.25,8.80994492]
[1764696120977,12.24511404,140.32,140.28,12.24511404]
[1764696121194,0.71,140.33,140.31,12.24511404]
[1764696121403,52.16107877,140.35,140.27,7.94]
[1764696121404,0.71,140.32,140.27,7.94]
[1764696121573,0.71,140.32,140.26,7.94]
[1764696121773,0.71,140.32,140.3,12.24511404]
[1764696122078,7.83664758,140.32,140.29,12.24511404]
[1764696122291,7.12664758,140.32,140.28,12.24511404]
[1764696122492,0.71,140.31,140.28,12.24511404]
[1764696122900,3.72199231,140.3,140.26,12.24511404]
[1764696123101,3.72199231,140.3,140.24,7.94]
[1764696123276,0.71,140.29,140.26,12.24511404]
[1764696123471,0.71,140.29,140.19,7.13302103]
[1764696123794,7.83826596,140.29,140.26,12.24511404]
[1764696124101,7.83826596,140.29,140.25,12.24511404]
[1764696124300,0.71,140.28,140.27,12.24511404]
[1764696124808,0.71,140.28,140.26,12.24511404]
[1764696125096,0.71,140.28,140.27,12.24511404]
[1764696126281,11.66199231,140.3,140.27,12.24511404]
[1764696126480,0.71,140.29,140.28,12.24511404]
[1764696126774,0.71,140.29,140.27,12.24511404]
[1764696127088,18.78993349,140.3,140.25,7.13010849]
[1764696127089,3.72199231,140.3,140.28,12.24511404]
[1764696127701,4.43199231,140.3,140.29,12.24511404]
[1764696128080,3.72199231,140.3,140.29,12.24511404]
[1764696128504,3.72199231,140.3,140.26,7.94]
[1764696128700,0.71,140.29,140.26,12.24511404]
[1764696129190,0.71,140.29,140.25,12.24511404]
[1764696129524,12.24511404,140.26,140.17,21.40334605]
[1764696129812,7.94,140.25,140.18,12.24511404]
[1764696130001,12.24511404,140.23,140.16,29.26915239]
[1764696130180,12.24511404,140.23,140.14,0.25]
[1764696130181,37.20588995,140.22,140.17,12.24511404]
[1764696130381,0.71,140.21,140.15,7.94]
[1764696130686,0.71,140.21,140.16,12.24511404]
[1764696130899,12.95511404,140.21,140.16,12.24511404]
[1764696131096,12.95511404,140.21,140.14,0.2]
[1764696131097,0.71,140.2,140.14,12.44511404]
[1764696131427,0.71,140.23,140.19,12.24511404]
[1764696131593,0.71,140.23,140.22,12.24511404]
[1764696132203,15.0880918,140.29,140.22,12.24511404]
[1764696132411,15.7780918,140.29,140.22,8.80994492]
[1764696132705,0.69,140.28,140.24,12.24511404]
[1764696133001,0.69,140.28,140.25,12.24511404]
[1764696133182,0.69,140.28,140.24,12.24511404]
[1764696133709,19.37422218,140.27,140.19,8.80994492]
[1764696134008,19.37422218,140.27,140.22,12.24511404]
[1764696134210,19.37422218,140.27,140.12,20.97322758]
[1764696134211,12.24511404,140.24,140.14,12.44511404]
[1764696134382,20.20511404,140.23,140.18,12.24511404]
[1764696134913,0.69,140.22,140.18,12.24511404]
[1764696135408,12.93511404,140.22,140.17,12.24511404]
[1764696135601,7.1321589,140.21,140.18,12.24511404]
[1764696135800,7.8221589,140.21,140.17,12.24511404]
[1764696135998,0.69,140.2,140.17,12.24511404]
[1764696136814,0.69,140.2,140.18,12.24511404]
[1764696137513,7.1331764,140.19,140.16,12.24511404]
[1764696138007,0.69,140.18,140.16,12.24511404]
[1764696138199,12.93511404,140.18,140.14,0.2]
[1764696138397,0.69,140.18,140.15,12.24511404]
[1764696138602,8.65,140.2,140.17,12.24511404]
[1764696138814,0.69,140.19,140.16,12.24511404]
[1764696139023,0.69,140.19,140.14,0.2]
[1764696139336,12.24511404,140.17,140.14,0.2]
[1764696139487,7.13521227,140.15,140.14,0.2]
[1764696139809,7.13521227,140.15,140.11,12.24511404]
[1764696140113,12.93511404,140.14,140.09,12.24511404]
[1764696140326,0.69,140.14,140.09,12.24511404]
[1764696140614,0.69,140.13,140.09,12.24511404]
[1764696140910,0.69,140.13,140.06,30.09156575]
[1764696141092,0.69,140.13,140.07,8.80994492]
[1764696141801,12.24511404,140.11,140.06,0.2]
[1764696141985,20.20511404,140.11,140.06,12.44511404]
[1764696142185,0.69,140.1,140.08,12.24511404]
[1764696142612,0.69,140.1,140.06,0.2]
[1764696142782,0.69,140.1,140.06,12.44511404]
[1764696142989,8.65,140.1,140.08,12.24511404]
[1764696143210,8.80994492,140.18,140.06,0.2]
[1764696143509,0.69,140.12,140.1,12.24511404]
[1764696143705,0.69,140.12,140.11,12.24511404]
[1764696143905,0.69,140.14,140.11,12.24511404]
[1764696144097,15.78470319,140.16,140.12,12.24511404]
[1764696144301,0.69,140.15,140.12,12.24511404]
[1764696144503,0.69,140.15,140.1,8.80994492]
[1764696145114,0.69,140.15,140.12,12.24511404]
[1764696145500,7.96,140.16,140.14,12.24511404]
[1764696145694,0.69,140.18,140.15,12.24511404]
[1764696145885,12.93511404,140.18,140.13,12.24511404]
[1764696146089,12.93511404,140.18,140.12,8.80994492]
[1764696146294,0.69,140.17,140.15,12.24511404]
[1764696146520,0.69,140.17,140.16,12.24511404]
[1764696146820,0.69,140.2,140.16,12.24511404]
[1764696147015,7.13215741,140.22,140.13,8.21]
[1764696147016,0.69,140.19,140.18,12.24511404]
[1764696147703,0.69,140.19,140.15,7.13521227]
[1764696147900,0.69,140.19,140.17,12.24511404]
[1764696148513,0.69,140.19,140.18,12.24511404]
[1764696149516,0.69,140.21,140.18,12.24511404]
[1764696149712,0.69,140.21,140.2,12.24511404]
[1764696149900,0.69,140.21,140.19,12.24511404]
[1764696150615,0.69,140.21,140.19,7.21718061]
[1764696150811,7.82222277,140.21,140.17,7.21718061]
[1764696151007,25.65262003,140.21,140.13,8.80994492]
[1764696151213,7.90718061,140.2,140.15,7.21718061]
[1764696151413,15.17718061,140.19,140.14,7.21718061]
[1764696151619,15.86718061,140.19,140.14,7.21718061]
[1764696151917,24.96967967,140.17,140.12,7.21718061]
[1764696152135,32.18686028,140.17,140.12,7.21718061]
[1764696152417,8.65,140.16,140.13,7.21718061]
[1764696152618,8.65,140.16,140.12,7.21718061]
[1764696152804,0.69,140.15,140.12,7.21718061]
[1764696153200,3.7257941,140.14,140.12,7.21718061]
[1764696153726,4.4257941,140.14,140.13,7.21718061]
[1764696154306,3.7257941,140.14,140.13,7.21718061]
[1764696154499,3.7257941,140.14,140.13,14.35341125]
[1764696155523,3.7257941,140.14,140.13,23.16335617]
[1764696155906,7.21718061,140.24,140.13,48.47111338]
[1764696156220,3.72434435,140.17,140.15,8.80994492]
[1764696156424,0.7,140.21,140.14,8.80994492]
[1764696156602,3.72452725,140.17,140.14,8.80994492]
[1764696157002,0.7,140.18,140.14,8.80994492]
[1764696157220,3.72457121,140.17,140.14,8.80994492]
[1764696157624,3.72457121,140.17,140.16,7.21718061]
[1764696158927,3.72457121,140.17,140.16,14.3518838]
[1764696159447,3.72457121,140.17,140.12,7.96]
[1764696159603,0.7,140.16,140.15,7.21718061]
[1764696160033,3.72457121,140.17,140.15,7.21718061]
[1764696160327,3.72457121,140.17,140.16,7.21718061]
[1764696160722,3.72457121,140.17,140.16,14.3518838]
[1764696160921,3.72457121,140.17,140.05,21.59236879]
[1764696161232,0.7,140.16,140.07,17.01994492]
[1764696161629,0.7,140.16,140.08,9.05994492]
[1764696161820,3.72457121,140.17,140.08,9.05994492]
[1764696162160,3.72457121,140.17,140.09,0.25]
[1764696162330,0.68,140.22,140.17,8.80994492]
[1764696162508,0.68,140.21,140.18,7.21718061]
[1764696162706,7.81217445,140.21,140.18,7.21718061]
[1764696162924,11.53622682,140.21,140.15,8.80994492]
[1764696163214,0.68,140.2,140.18,7.21718061]
[1764696163632,0.68,140.2,140.19,7.21718061]
[1764696164233,0.68,140.2,140.18,7.21718061]
[1764696165124,0.68,140.2,140.19,7.21718061]
[1764696166035,0.68,140.2,140.18,7.21718061]
[1764696166328,7.81275264,140.2,140.18,7.21718061]
[1764696166535,0.68,140.19,140.15,7.21718061]
[1764696166704,15.17718061,140.2,140.15,7.21718061]
[1764696167107,3.72479089,140.19,140.15,7.21718061]
[1764696167330,3.72479089,140.19,140.1,8.21]
[1764696167522,10.9419715,140.19,140.1,8.80994492]
[1764696167723,10.9419715,140.19,140.14,7.21718061]
[1764696167921,7.21718061,140.18,140.13,7.21718061]
[1764696168636,7.21718061,140.18,140.1,7.13775874]
[1764696168841,0.68,140.17,140.12,7.21718061]
[1764696169013,7.13521227,140.15,140.12,7.21718061]
[1764696169215,7.13521227,140.15,140.11,7.21718061]
[1764696169415,0.68,140.14,140.06,0.2]
[1764696169653,0.68,140.14,140.06,7.41718061]
[1764696169832,7.21718061,140.12,140.07,7.21718061]
[1764696170033,7.96,140.11,140.08,7.21718061]
[1764696170238,7.96,140.12,140.08,7.21718061]
[1764696170538,8.64,140.12,140.09,7.21718061]
[1764696170716,0.68,140.12,140.09,7.21718061]
[1764696170918,0.68,140.12,140.1,7.21718061]
[1764696171229,7.1372493,140.11,140.07,7.21718061]
[1764696171432,32.19755317,140.11,140.06,7.41718061]
[1764696171622,7.89718061,140.1,140.06,0.2]
[1764696171942,7.96,140.09,140.06,0.2]
[1764696172123,8.64,140.09,140.06,0.2]
[1764696172330,8.64,140.09,140.08,7.21718061]
[1764696172742,8.64,140.09,140.06,7.33971442]
[1764696172926,0.68,140.16,140.08,7.21718061]
[1764696173129,0.68,140.17,140.15,7.21718061]
[1764696173425,0.68,140.17,140.11,8.80994492]
[1764696173840,0.68,140.17,140.13,7.21718061]
[1764696173841,7.81427818,140.17,140.13,7.21718061]
[1764696174045,7.81427818,140.17,140.12,7.21718061]
[1764696174222,0.68,140.16,140.12,7.21718061]
[1764696174629,0.68,140.16,140.13,7.21718061]
[1764696174845,0.68,140.16,140.1,9.50994492]
[1764696175047,0.68,140.16,140.14,7.21718061]
[1764696175233,7.13521227,140.15,140.14,7.21718061]
[1764696175430,0.68,140.16,140.12,7.13643436]
[1764696175631,7.81471152,140.16,140.14,7.21718061]
[1764696175824,0.68,140.16,140.15,7.21718061]
[1764696176147,7.81471006,140.16,140.15,7.21718061]
[1764696176457,7.13438116,140.17,140.11,7.83712559]
[1764696176622,8.66,140.18,140.16,7.21718061]
[1764696176826,0.68,140.17,140.16,7.21718061]
[1764696177127,7.81419419,140.17,140.16,7.21718061]
[1764696177638,7.81419419,140.17,140.1,8.80994492]
[1764696177945,0.68,140.16,140.12,7.21718061]
[1764696178645,7.89718061,140.16,140.11,7.21718061]
[1764696178824,7.89718061,140.15,140.1,7.21718061]
[1764696179026,0.68,140.15,140.09,16.64821317]
[1764696179243,7.13572142,140.14,140.1,7.21718061]
[1764696179549,7.81572142,140.14,140.1,7.21718061]
[1764696179842,7.21718061,140.12,140.07,7.21718061]
[1764696180030,7.89718061,140.13,140.08,7.21718061]
[1764696180224,0.68,140.12,140.08,7.21718061]
[1764696181331,15.17718061,140.14,140.09,7.21718061]
[1764696181529,15.03341125,140.13,140.07,7.13910012]
[1764696181843,7.81623064,140.13,140.08,7.21718061]
[1764696182026,7.81623064,140.13,140.09,7.21718061]
[1764696182227,0.68,140.12,140.08,7.21718061]
[1764696182424,7.21718061,140.1,140.06,0.2]
[1764696182749,7.89718061,140.12,140.07,7.21718061]
[1764696182951,0.68,140.12,140.08,7.21718061]
[1764696183249,0.68,140.11,140.08,14.35588435]
[1764696183423,7.8159292,140.14,140.1,7.21718061]
[1764696183619,7.8159292,140.14,140.11,7.21718061]
[1764696184036,7.13539809,140.15,140.11,7.21718061]
[1764696184219,7.81539809,140.15,140.11,7.21718061]
[1764696184427,7.81539809,140.15,140.12,7.21718061]
[1764696185255,15.09488762,140.16,140.12,7.13664179]
[1764696185461,0.68,140.15,140.12,7.21718061]
[1764696185761,0.68,140.15,140.11,7.21718061]
[1764696185930,0.68,140.15,140.11,14.35442856]
[1764696186126,7.21718061,140.14,140.09,7.21718061]
[1764696186326,0.68,140.15,140.08,14.35573412]
[1764696186552,0.68,140.14,140.1,7.21718061]
[1764696186762,14.35206823,140.16,140.1,7.21718061]
[1764696186940,0.68,140.15,140.1,7.21718061]
[1764696187142,0.68,140.15,140.12,7.21718061]
[1764696187454,7.13538954,140.15,140.11,7.83713912]
[1764696187645,7.13538954,140.15,140.12,7.21718061]
[1764696188353,7.81538954,140.15,140.12,7.21718061]
[1764696188535,7.13419419,140.17,140.14,7.21718061]
[1764696188944,7.13419419,140.17,140.12,16.02712553]
[1764696189252,7.81419419,140.17,140.13,7.21718061]
[1764696189550,0.68,140.16,140.12,9.50994492]
[1764696189755,0.68,140.16,140.13,7.21718061]
[1764696189932,7.13419419,140.17,140.14,7.21718061]
[1764696190127,7.81419419,140.17,140.14,7.21718061]
[1764696190333,0.68,140.16,140.13,7.21718061]
[1764696191051,0.68,140.16,140.12,7.21718061]
[1764696191240,0.68,140.16,140.11,14.35442823]
[1764696191834,0.68,140.16,140.12,7.21718061]
[1764696192035,7.13521227,140.15,140.13,7.21718061]
[1764696192360,7.13521227,140.15,140.12,7.21718061]
[1764696192933,7.13478352,140.16,140.12,7.21718061]
[1764696193134,7.13420648,140.17,140.13,7.87718061]
[1764696193462,7.13420648,140.17,140.13,7.21718061]
[1764696193765,7.80420648,140.17,140.13,7.87718061]
[1764696193941,7.80420648,140.17,140.14,7.21718061]
[1764696193942,0.67,140.17,140.14,7.21718061]
[1764696194145,12.35479089,140.19,140.14,14.35284718]
[1764696194344,0.67,140.18,140.14,14.35284718]
[1764696194561,7.80376405,140.18,140.14,7.21718061]
[1764696194957,7.80376405,140.18,140.13,7.79602959]
[1764696195135,7.13376405,140.18,140.13,7.79602959]
[1764696195336,0.67,140.17,140.14,7.21718061]
[1764696195746,0.67,140.17,140.13,7.21718061]
[1764696196150,15.02177114,140.17,140.12,7.21718061]
[1764696196348,7.21718061,140.15,140.1,23.98712553]
[1764696196557,7.21718061,140.15,140.09,15.17718061]
[1764696196753,7.88718061,140.14,140.08,16.60849714]
[1764696196953,7.21718061,140.1,140.05,15.01718842]
[1764696197158,7.21718061,140.1,140.05,31.32605242]
[1764696197484,0.67,140.09,140.04,14.35778238]
[1764696197644,0.67,140.09,140.01,56.84765176]
[1764696197645,7.21718061,140.07,140.02,7.21718061]
[1764696197843,0.67,140.09,140.05,7.14021346]
[1764696198044,0.67,140.09,140.05,7.14006987]
[1764696198245,7.88718061,140.09,140.05,7.14006987]
[1764696198444,7.8082773,140.09,140.05,7.14006987]
[1764696198671,0.67,140.08,140.04,15.9506659]
[1764696198855,7.88718061,140.08,140.04,7.14080938]
[1764696199041,3.72679618,140.1,140.05,9.46994492]
[1764696199248,3.72679618,140.1,140.08,7.21718061]
[1764696199956,3.72679618,140.1,140.06,14.55678491]
[1764696200156,3.72679618,140.1,140.08,7.21718061]
[1764696200352,3.72679618,140.1,140.09,7.21718061]
[1764696200557,3.72679618,140.1,140.06,0.2]
[1764696200767,3.72679618,140.1,140.07,7.21718061]
[1764696201348,3.72679618,140.1,140.06,16.14961184]
[1764696201572,0.67,140.09,140.06,0.2]
[1764696201774,10.86459965,140.1,140.07,7.21718061]
[1764696201975,3.72679618,140.1,140.07,7.21718061]
[1764696202200,3.72679618,140.1,140.09,7.21718061]
[1764696203271,3.72679618,140.1,140.08,7.79877784]
[1764696203473,3.72679618,140.1,140.08,14.35595845]
[1764696203675,10.86461183,140.1,140.07,14.35633082]
[1764696203861,3.72679618,140.1,140.07,7.13915021]
[1764696204059,3.72679618,140.1,140.07,14.35633082]
[1764696204450,10.86462405,140.1,140.07,14.35633082]
[1764696204655,11.53462405,140.1,140.07,7.21718061]
[1764696204868,4.39679618,140.1,140.06,16.80951966]
[1764696205062,3.72679618,140.1,140.08,7.21718061]
[1764696205265,3.72679618,140.1,140.09,32.33598953]
[1764696205467,2.79679618,140.1,140.09,32.33598953]
[1764696205653,0.67,140.17,140.12,16.308864]
[1764696205865,3.72542441,140.16,140.12,16.308864]
[1764696206159,3.72542441,140.16,140.15,7.21718061]
[1764696207970,3.72542441,140.16,140.13,15.94594794]
[1764696207971,4.39542441,140.16,140.14,7.21718061]
[1764696208292,4.39542441,140.16,140.14,14.3528445]
[1764696208583,4.39542441,140.16,140.14,7.21718061]
[1764696208973,10.86014907,140.16,140.13,7.21718061]
[1764696209177,0.67,140.15,140.12,23.52604461]
[1764696209683,0.67,140.15,140.13,7.21718061]
[1764696211586,0.67,140.15,140.09,7.21718061]
[1764696211587,7.21718061,140.14,140.09,7.21718061]
[1764696212061,0.67,140.13,140.1,7.21718061]
[1764696212256,0.67,140.13,140.11,7.21718061]
[1764696212483,0.67,140.13,140.09,7.13811232]
[1764696212484,0.67,140.13,140.1,12.30159667]
[1764696212684,15.09527622,140.15,140.09,8.80994492]
[1764696212870,15.09527622,140.15,140.11,12.30159667]
[1764696213079,7.96,140.15,140.13,12.30159667]
[1764696213387,8.63,140.15,140.13,12.30159667]
[1764696213688,8.63,140.15,140.12,12.30159667]
[1764696214472,8.63,140.15,140.12,19.43830465]
[1764696214874,0.67,140.14,140.06,16.508864]
[1764696215088,12.30159667,140.12,140.07,12.30159667]
[1764696215263,7.98,140.12,140.07,12.30159667]
[1764696215468,0.67,140.11,140.08,12.30159667]
[1764696215902,0.67,140.11,140.09,12.30159667]
[1764696216264,0.67,140.13,140.09,12.30159667]
[1764696216589,15.7862919,140.13,140.1,12.30159667]
[1764696216787,15.7862919,140.13,140.09,19.43955652]
[1764696216788,7.8062919,140.13,140.09,19.43955652]
[1764696216963,0.67,140.12,140.09,19.43955652]
[1764696217159,0.67,140.12,140.08,7.13855702]
[1764696217386,12.97159667,140.12,140.07,19.4407659]
[1764696217793,0.67,140.11,140.07,19.4407659]
[1764696217991,0.67,140.11,140.08,12.30159667]
[1764696218176,0.67,140.11,140.09,12.30159667]
[1764696218375,24.9768685,140.13,140.09,12.30159667]
[1764696218376,15.7662919,140.13,140.09,12.30159667]
[1764696218576,0.67,140.12,140.08,12.30159667]
[1764696218887,0.67,140.12,140.07,15.94911415]
[1764696219090,0.67,140.12,140.08,12.30159667]
[1764696219298,0.67,140.12,140.09,12.30159667]
[1764696220198,0.67,140.12,140.07,15.94911415]
[1764696220367,7.1372493,140.11,140.06,0.2]
[1764696220573,8.63,140.12,140.09,12.30159667]
[1764696221294,0.67,140.12,140.09,12.30159667]
[1764696221992,7.80677258,140.12,140.09,12.30159667]
[1764696222220,0.7,140.11,140.09,12.30159667]
[1764696222370,0.7,140.11,140.08,12.30159667]
[1764696222894,0.7,140.11,140.08,19.44037451]
[1764696223399,15.81633655,140.13,140.09,12.30159667]
[1764696223582,0.7,140.12,140.09,12.30159667]
[1764696225697,7.83709885,140.12,140.07,15.94904207]
[1764696225995,7.83709885,140.12,140.08,12.30159667]
[1764696226212,0.7,140.11,140.08,12.30159667]
[1764696226493,13.00159667,140.15,140.1,21.11154159]
[1764696226681,0.7,140.15,140.12,12.30159667]
[1764696226882,7.83527627,140.15,140.12,12.30159667]
[1764696227591,0.7,140.14,140.12,12.30159667]
[1764696228197,0.7,140.14,140.11,7.1369369]
[1764696228393,0.7,140.14,140.12,12.30159667]
[1764696230616,0.7,140.14,140.11,7.1369369]
[1764696230617,0.7,140.14,140.11,12.30159667]
[1764696232684,4.42542441,140.16,140.13,12.30159667]
[1764696233107,0.7,140.15,140.13,12.30159667]
[1764696233321,4.42542441,140.16,140.14,12.30159667]
[1764696233528,3.72542441,140.16,140.15,12.30159667]
[1764696234293,1e-08,140.16,140.15,29.07154159]
[1764696234598,4.42395572,140.21,140.17,8.80994492]
[1764696234800,12.30159667,140.2,140.16,24.97146118]
[1764696235003,13.00159667,140.2,140.16,24.97146118]
[1764696235213,0.7,140.19,140.16,24.97146118]
[1764696235397,0.7,140.19,140.16,12.30159667]
[1764696235610,0.7,140.19,140.17,12.30159667]
[1764696236194,12.38395572,140.21,140.17,12.30159667]
[1764696236394,0.7,140.2,140.17,12.30159667]
[1764696237122,0.7,140.2,140.17,24.96848644]
[1764696238491,0.7,140.2,140.17,37.27008311]
[1764696238893,0.7,140.2,140.18,12.30159667]
[1764696239313,0.7,140.2,140.19,7.1331764]
[1764696239822,3.72395572,140.21,140.19,7.1331764]
[1764696240021,4.42395572,140.21,140.19,7.1331764]
[1764696240224,3.72395572,140.21,140.19,7.1331764]
[1764696240410,0.7,140.2,140.19,7.1331764]
[1764696240726,13.00159667,140.2,140.19,7.1331764]
[1764696241223,0.7,140.2,140.19,7.1331764]
[1764696241720,3.72395572,140.21,140.19,12.30159667]
[1764696241915,3.72395572,140.21,140.2,12.30159667]
[1764696242231,0.7,140.2,140.18,60.63632471]
[1764696242415,0.7,140.2,140.18,24.96789841]
[1764696242615,13.00159667,140.2,140.18,7.13368526]
[1764696242822,12.30159667,140.19,140.16,7.13419757]
[1764696243011,0.7,140.19,140.16,7.13419757]
[1764696243213,0.7,140.19,140.16,37.27255223]
[1764696244105,7.96,140.2,140.17,12.30159667]
[1764696244324,0.7,140.19,140.16,37.27255223]